{"text_format":"1","workbook":"xlsx","n_sheets":4,"sheets":["ＪＶで入札参加→","別紙１－③ (ＪＶ用)","変更契約から紙契約希望→","別紙２（変更契約）"],"not_rendered":{"charts":0,"images":0,"macros":1,"external_links":0,"defined_names":3,"comments":2,"pivot_tables":0},"unopened":[],"bounds":{"document_bytes":16777216,"sheet_cells":100000,"rows_first":2000,"rows_last":500,"rows_between":2000,"halvings":0,"cell_chars":16384,"cell_head_chars":4096},"cells_cut":0,"cells_raw":0,"read":"whole","date_system":"1900"}

{"sheet":"ＪＶで入札参加→","index":0,"n_rows":19,"n_cols":1,"rows_kept":19,"cut":false,"hidden":false,"merged":[[12,0,12,8]]}
[]
["共同企業体で入札参加する場合は、"]
[]
["別紙１ー③（ＪＶ用）に必要事項を"]
[]
["入力後、ＰＤＦで保存の上、"]
[]
["入札金額送信の際、内訳書と同時に"]
[]
["提出してください"]
[]
[]
["＜電子入札案件に「紙参加」する場合＞"]
["　事前に必要事項を記入の上、開札日に持参し、落札者と"]
["なった場合に、契約担当課へ提出してください。"]
["　なお、総合評価落札方式及び事後審査型入札の場合は、"]
["入札書等と同時に提出してください。"]
["　また、郵送の場合は、入札書、内訳書とともに同封して"]
["ください。"]

{"sheet":"別紙１－③ (ＪＶ用)","index":1,"n_rows":46,"n_cols":46,"rows_kept":46,"cut":false,"hidden":false,"merged":[[29,13,30,23],[35,0,39,1],[36,2,38,4],[36,5,36,8],[36,9,36,23],[37,5,37,8],[37,9,37,13],[37,15,37,23],[38,5,38,8],[38,9,38,12],[38,14,38,17],[38,19,38,21],[17,1,17,3],[17,6,17,23],[20,1,21,3],[20,25,21,34],[23,1,24,4],[23,7,24,11],[23,12,24,12],[23,13,24,23],[23,26,27,32],[26,7,27,11],[26,12,27,12],[26,13,27,23],[13,1,13,6],[13,7,13,24],[16,1,16,3],[16,6,16,8],[10,13,10,23],[0,35,0,37],[1,27,2,28],[1,35,1,37],[4,27,5,28],[6,7,6,12],[6,13,6,23],[0,0,0,24],[7,27,8,28],[8,7,8,12],[8,13,8,23],[11,19,11,23],[9,7,9,12],[9,13,9,17],[9,19,9,23],[7,7,7,12],[7,13,7,23],[10,28,11,32],[10,26,11,27],[24,38,25,43],[27,38,28,44],[33,38,34,45],[29,1,30,4],[32,1,33,4],[23,5,24,6],[32,5,33,6],[29,5,30,6],[26,5,27,6],[30,38,31,43],[26,1,27,4],[32,7,33,11],[32,12,33,12],[32,13,33,23],[29,7,30,11],[29,12,30,12]]}
["契約に関する申出書",null,null,null,null,null,null,null,null,null,null,null,null,null,null,null,null,null,null,null,null,null,null,null,null,"はじめに選択↓",null,null,null,"契約区分",null,null,null,null,null,"入力箇所",null,null,null,null,null,null,"発注機関名","支出負担行為担当者名"]
[null,null,null,null,null,null,null,null,null,null,null,null,null,null,null,null,null,null,null,null,null,null,null,null,null,null,null,1,null,null,1,"工事",null,null,null,"選択箇所",null,null,null,null,null,10,"札幌建管","空知総合振興局長","satsudoboku.koji1@pref.hokkaido.lg.jp","011-561-0426"]
[null,null,null,null,null,null,null,null,null,null,null,null,null,null,null,null,null,{"$f":"IF($AB$2=\"\",\"\",\"令和\")","v":"令和"},null,"年",null,"月",null,"日",null,null,null,null,null,null,2,"委託業務",null,null,null,null,null,null,null,null,null,11,"小樽建管","後志総合振興局長","otarukenkan.nyuusatu@pref.hokkaido.lg.jp","0134-25-2160"]
[null,null,null,null,null,null,null,null,null,null,null,null,null,null,null,null,null,null,null,null,null,null,null,null,null,"次に選択↓",null,null,null,"発注機関",null,null,null,null,null,null,null,null,null,null,null,12,"函館建管","渡島総合振興局長","hakodatekenkan.nyukeiseikyu@pref.hokkaido.lg.jp","0138-47-9613"]
[null,{"$f":"IF(AB5=\"\",\"（支出負担行為担当者）\",VLOOKUP(AB5,$AP$2:$AR$12,3,1))&\"　様\"","v":"（支出負担行為担当者）　様"},null,null,null,null,null,null,null,null,null,null,null,null,null,null,null,null,null,null,null,null,null,null,null,null,null,null,null,null,null,null,null,null,null,null,null,null,null,null,null,13,"室蘭建管","胆振総合振興局長","murorandoboku.koji1@pref.hokkaido.lg.jp","0143-24-9859"]
[null,null,null,null,null,null,null,null,null,null,null,null,null,null,null,null,null,null,null,null,null,null,null,null,null,null,null,null,null,null,null,null,null,null,null,null,null,null,null,null,null,14,"旭川建管","上川総合振興局長","asahikawadoboku.koji1@pref.hokkaido.lg.jp","0166-46-4912"]
[null,null,null,null,null,null,null,{"$f":"IF(AB8=2,\"ＪＶ名\",\"\")","v":"ＪＶ名"},null,null,null,null,null,null,null,null,null,null,null,null,null,null,null,null,null,null,null,null,null,"参加形態",null,null,null,null,null,null,null,null,null,null,null,15,"留萌建管","留萌振興局長","rumoikenkan.nyukei@pref.hokkaido.lg.jp","0164-42-8347"]
[null,null,null,null,null,null,null,"住所",null,null,null,null,null,null,null,null,null,null,null,null,null,null,null,null,null,null,null,2,null,null,null,null,null,null,null,null,null,null,null,null,null,16,"稚内建管","宗谷総合振興局長","wakanaidoboku.koji1@pref.hokkaido.lg.jp","0162-33-2551"]
[null,null,null,null,null,null,null,"商号又は名称",null,null,null,null,null,null,null,null,null,null,null,null,null,null,null,null,null,null,null,null,null,null,2,"ＪＶ",null,null,null,null,null,null,null,null,null,17,"網走建管","オホーツク総合振興局長","abashiridoboku.koji1@pref.hokkaido.lg.jp","0152-41-0710"]
[null,null,null,null,null,null,null,"代表者役職・氏名",null,null,null,null,null,null,null,null,null,null,null,null,null,null,null,null,null,"最後に入力↓",null,null,null,null,null,null,null,null,null,null,null,null,null,null,null,18,"帯広建管","十勝総合振興局長","obihirodoboku.koji1@pref.hokkaido.lg.jp","0155-27-8710"]
[null,null,null,null,null,null,"代理人","住所",null,null,null,null,null,null,null,null,null,null,null,null,null,null,null,null,null,null,"開札日",null,"2023-12-15",null,null,null,null,null,null,null,null,null,null,null,null,19,"釧路建管","釧路総合振興局長","kushirodoboku.koji1@pref.hokkaido.lg.jp","0154-23-9121"]
[null,null,null,null,null,null,null,"氏名",null,null,null,null,null,null,null,null,null,null,null,null,null,null,null,null,null,null,null,null,null,null,null,null,null,null,null,null,null,null,null,null,null,20,"建築局","北海道知事","kensetsu.kenkei1@pref.hokkaido.lg.jp","011-204-5592"]
[]
[null,{"$f":"AC11","v":"2023-12-15"},null,null,null,null,null,{"$f":"\"に開札予定の次の\"&IF(AB2=1,AF2,AF3)&\"について、落札者となった\"","v":"に開札予定の次の工事について、落札者となった"}]
["場合の契約方法を、次のとおり申し出ます。"]
[null,null,null,null,null,null,null,null,null,null,null,null,null,null,null,null,null,null,null,null,null,null,null,null,null,null,null,null,null,null,null,null,null,null,null,null,null,null,"＜ファイル名用＞"]
["（","整理番号",null,null,"）","（",null,null,null,"）",null,null,null,null,null,null,null,null,null,null,null,null,null,null,null,null,null,null,null,null,null,null,null,null,null,null,null,null,null,null,null,"発注機関",{"$f":"VLOOKUP(AR17,AP2:AQ12,2,1)","v":{"$error":"#N/A"}},{"$f":"AB5","v":0}]
[null,{"$f":"IF(AB2=1,\"工事名\",\"業務名\")","v":"工事名"},null,null,null,null,null,null,null,null,null,null,null,null,null,null,null,null,null,null,null,null,null,null,null,"←案件名",null,null,null,null,null,null,null,null,null,null,null,null,null,null,null,"開札日",{"$f":"MONTH(AC11)&\"月\"&DAY(AC11)&\"日\"","v":"12月15日"}]
[null,null,null,null,null,null,null,null,null,null,null,null,null,null,null,null,null,null,null,null,null,null,null,null,null,null,null,null,null,null,null,null,null,null,null,null,null,null,null,null,null,"整理番号",{"$f":"G17","v":0}]
[null,null,null,null,null,null,null,null,null,null,null,null,null,null,null,null,null,null,null,null,null,null,null,null,null,null,null,null,null,null,null,null,null,null,null,null,null,null,null,null,null,"入札参加者名",{"$f":"IF(AB8=1,N9,N7)","v":0}]
[null,"契約方法\n等の申出",null,null,null,null,null,"紙での契約を希望します。",null,null,null,null,null,null,null,null,null,null,null,null,null,null,null,null,null,"←どちらかにチェックしてください",null,null,null,null,null,null,null,null,null,null,null,null,null,null,null,"タイトル","契約に関する申出書"]
[null,null,null,null,null,null,null,"電子契約を希望します。"]
[null,null,null,null,null,null,null,"なお、契約書送付先のメールアドレスは、次のとおりです。"]
[null,"（代表者）\n　　契約権限者",null,null,null,"氏名",null,null,null,null,null,null,"ｱﾄﾞ\nﾚｽ",null,null,null,null,null,null,null,null,null,null,null,null,null,"・発注者から事務担当→締結権限者の順に署名依頼のメールが届きます。\n・締結権限者のみの記載でも契約締結は可能です。",null,null,null,null,null,null,null,null,null,null,null,"全ての入力内容を確認後、ＰＤＦに変換のうえ、"]
[null,null,null,null,null,null,null,null,null,null,null,null,null,null,null,null,null,null,null,null,null,null,null,null,null,null,null,null,null,null,null,null,null,null,null,null,null,null,"電子入札システムにて、入札金額等の送信時に、"]
[]
[null,"（代表者）\n　　契約担当者",null,null,null,"氏名",null,null,null,null,null,null,"ｱﾄﾞ\nﾚｽ",null,null,null,null,null,null,null,null,null,null,null,null,null,null,null,null,null,null,null,null,null,null,null,null,null,{"$f":"IF(AB2=1,\"工事\",\"委託\")&\"費内訳書とともに添付し、提出してください。\"","v":"工事費内訳書とともに添付し、提出してください。"}]
[null,null,null,null,null,null,null,null,null,null,null,null,null,null,null,null,null,null,null,null,null,null,null,null,null,null,null,null,null,null,null,null,null,null,null,null,null,null,"（１案件につき１枚、添付してください。）"]
[]
[null,"(構成員1)\n　　契約権限者",null,null,null,"氏名",null,null,null,null,null,null,"ｱﾄﾞ\nﾚｽ",null,null,null,null,null,null,null,null,null,null,null,null,null,null,null,null,null,null,null,null,null,null,null,null,null,"なお、←のＰＤＦ化をクリックすると、"]
[null,null,null,null,null,null,null,null,null,null,null,null,null,null,null,null,null,null,null,null,null,null,null,null,null,null,null,null,null,null,null,null,null,null,null,null,null,null,"このエクセルシートが保存されている場所と同じ場所に"]
[]
[null,"(構成員2)\n　　契約権限者",null,null,null,"氏名",null,null,null,null,null,null,"ｱﾄﾞ\nﾚｽ",null,null,null,null,null,null,null,null,null,null,null,null,null,null,null,null,null,null,null,null,null,null,null,null,null,"「発注機関名_開札日_整理番号_入札参加者名_契約に係る申出書」"]
[null,null,null,null,null,null,null,null,null,null,null,null,null,null,null,null,null,null,null,null,null,null,null,null,null,null,null,null,null,null,null,null,null,null,null,null,null,null,"をファイル名としたこの様式が、ＰＤＦで保存されます。"]
[]
["連絡先",null,null,null,null,null,null,null,null,null,null,null,null,null,null,null,null,null,null,null,null,null,null,null,null,null,null,null,null,null,null,null,null,null,null,null,null,null,"（ＰＤＦの保存範囲は、Ａ～Ｙ列までです。）"]
[null,null,"担当者",null,null,"（所属）"]
[null,null,null,null,null,"（職・氏名）",null,null,null,null,null,null,null,null,"・"]
[null,null,null,null,null,"（電話番号）",null,null,null,null,null,null,null,"－",null,null,null,null,"－"]
[]
[]
["（留意事項）"]
[null,"※",{"$f":"\"この申出書は、入札金額等の送信時に、\"&IF(AB2=1,\"工事\",\"委託\")&\"費内訳書と併せて提出してください。\"","v":"この申出書は、入札金額等の送信時に、工事費内訳書と併せて提出してください。"}]
[null,null,"なお、添付漏れの場合でも、入札書が無効となることはありませんが、落札者の決定後、"]
[null,null,"速やかに、契約締結続きを行う必要があるため、忘れずに提出してください。"]
[null,"※","紙参加の場合は、必要事項を記入の上、開札日に持参してください。"]

{"sheet":"変更契約から紙契約希望→","index":2,"n_rows":14,"n_cols":1,"rows_kept":14,"cut":false,"hidden":false,"merged":[]}
[]
["変更契約から「紙契約」を希望する"]
[]
["場合、別紙２（変更契約）を、直接"]
[]
["契約担当課へ提出してください。"]
[]
["なお、メールで提出される場合は、"]
[]
["行き違い等の防止のため、お手数"]
[]
["ですが、その旨、電話連絡をお願い"]
[]
["いたします。"]

{"sheet":"別紙２（変更契約）","index":3,"n_rows":30,"n_cols":44,"rows_kept":30,"cut":false,"hidden":false,"merged":[[29,8,29,23],[20,14,20,17],[20,19,20,21],[17,0,21,1],[18,2,20,4],[18,5,18,8],[18,9,18,23],[19,5,19,8],[19,9,19,13],[19,15,19,23],[20,5,20,8],[20,9,20,12],[27,7,27,23],[28,7,28,23],[8,13,8,23],[15,1,15,3],[15,6,15,23],[10,26,11,27],[10,28,11,32],[11,1,11,6],[11,7,11,24],[14,1,14,3],[14,6,14,8],[21,38,22,45],[16,38,17,43],[0,0,0,24],[9,7,9,12],[9,13,9,17],[9,19,9,23],[0,35,0,37],[1,27,2,28],[1,35,1,37],[4,27,5,28],[6,7,6,12],[6,13,6,23],[7,7,7,12],[7,13,7,23],[7,27,8,28],[8,7,8,12]]}
["変更契約に関する申出書",null,null,null,null,null,null,null,null,null,null,null,null,null,null,null,null,null,null,null,null,null,null,null,null,null,null,null,null,"契約区分",null,null,null,null,null,"入力箇所"]
[null,null,null,null,null,null,null,null,null,null,null,null,null,null,null,null,null,null,null,null,null,null,null,null,null,null,null,{"$f":"'別紙１－③ (ＪＶ用)'!AB2:AC3","v":1},null,null,1,"工事",null,null,null,"選択箇所"]
[null,null,null,null,null,null,null,null,null,null,null,null,null,null,null,null,null,{"$f":"IF($AB$2=\"\",\"\",\"令和\")","v":"令和"},null,"年",null,"月",null,"日",null,null,null,null,null,null,2,"委託業務"]
[null,null,null,null,null,null,null,null,null,null,null,null,null,null,null,null,null,null,null,null,null,null,null,null,null,null,null,null,null,"発注機関"]
[null,{"$f":"'別紙１－③ (ＪＶ用)'!B5","v":"（支出負担行為担当者）　様"},null,null,null,null,null,null,null,null,null,null,null,null,null,null,null,null,null,null,null,null,null,null,null,null,null,{"$f":"'別紙１－③ (ＪＶ用)'!AB5:AC6","v":0}]
[null,null,null,null,null,null,null,null,null,null,null,null,null,null,null,null,null,null,null,null,null,null,null,null,null,null,null,null,null,null,null,null,null,null,null,null,null,null,null,"＜ファイル名用＞"]
[null,null,null,null,null,null,null,{"$f":"IF(AB8=2,\"ＪＶ名\",\"\")","v":"ＪＶ名"},null,null,null,null,null,{"$f":"'別紙１－③ (ＪＶ用)'!N7:X7","v":0},null,null,null,null,null,null,null,null,null,null,null,null,null,null,null,"契約形態",null,null,null,null,null,null,null,null,null,null,null,"発注機関",{"$f":"VLOOKUP(AB5,'別紙１－③ (ＪＶ用)'!AP2:AU12,2)","v":{"$error":"#N/A"}},{"$f":"AB5","v":0}]
[null,null,null,null,null,null,null,"住所",null,null,null,null,null,{"$f":"'別紙１－③ (ＪＶ用)'!N8:X8","v":0},null,null,null,null,null,null,null,null,null,null,null,null,null,{"$f":"'別紙１－③ (ＪＶ用)'!AB8:AC9","v":2},null,null,null,null,null,null,null,null,null,null,null,null,null,"当初契約日",{"$f":"MONTH(AC11)&\"月\"&DAY(AC11)&\"日\"","v":"1月0日"}]
[null,null,null,null,null,null,null,"商号又は名称",null,null,null,null,null,{"$f":"'別紙１－③ (ＪＶ用)'!N9:X9","v":0},null,null,null,null,null,null,null,null,null,null,null,null,null,null,null,null,2,"ＪＶ",null,null,null,null,null,null,null,null,null,{"$f":"B15","v":"工事番号"},{"$f":"G15","v":0}]
[null,null,null,null,null,null,null,"代表者役職・氏名",null,null,null,null,null,{"$f":"'別紙１－③ (ＪＶ用)'!N10:R10","v":0},null,null,null,null,null,{"$f":"'別紙１－③ (ＪＶ用)'!T10:X10","v":0},null,null,null,null,null,"はじめに入力↓",null,null,null,null,null,null,null,null,null,null,null,null,null,null,null,{"$f":"IF(AB2=1,\"受注者\",\"受託者\")","v":"受注者"},{"$f":"IF(AB8=1,N9,N7)","v":0}]
[null,null,null,null,null,null,null,null,null,null,null,null,null,null,null,null,null,null,null,null,null,null,null,null,null,null,"当初\n契約日",null,null,null,null,null,null,null,null,null,null,null,null,null,null,"タイトル","変更契約に関する申出書"]
[null,{"$f":"AC11","v":"00:00:00"},null,null,null,null,null,{"$f":"\"に契約締結した次の\"&IF(AB2=1,AF2,AF3)&\"について、\"&\"第\"&AE13&\"回変更契約から\"","v":"に契約締結した次の工事について、第１回変更契約から"}]
["紙での契約を希望するので、申し出ます。",null,null,null,null,null,null,null,null,null,null,null,null,null,null,null,null,null,null,null,null,null,null,null,null,null,"設計変更回数",null,null,null,"１","←最後に入力"]
[]
["（",{"$f":"IF(AB2=1,\"工事番号\",\"業務番号\")","v":"工事番号"},null,null,"）","（",{"$f":"'別紙１－③ (ＪＶ用)'!G17:I17","v":0},null,null,"）"]
[null,{"$f":"IF(AB2=1,\"工事名\",\"業務名\")","v":"工事名"},null,null,null,null,{"$f":"'別紙１－③ (ＪＶ用)'!G18:X18","v":0},null,null,null,null,null,null,null,null,null,null,null,null,null,null,null,null,null,null,null,null,null,null,null,null,null,null,null,null,null,null,null,"全ての入力内容を確認後、ＰＤＦに変換のうえ、"]
[null,null,null,null,null,null,null,null,null,null,null,null,null,null,null,null,null,null,null,null,null,null,null,null,null,null,null,null,null,null,null,null,null,null,null,null,null,null,"入札契約課へ送付してください。"]
["連絡先"]
[null,null,"担当者",null,null,"（所属）",null,null,null,null,null,null,null,null,null,null,null,null,null,null,null,null,null,null,null,"当初契約時と連絡先が違う場合も想定されるので",null,null,null,null,null,null,null,null,null,null,null,null,"なお、←のＰＤＦ化をクリックすると、"]
[null,null,null,null,null,"（職・氏名）",null,null,null,null,null,null,null,null,"・",null,null,null,null,null,null,null,null,null,null,"お手数ですが、ご入力ください",null,null,null,null,null,null,null,null,null,null,null,null,"このエクセルシートが保存されている場所と同じ場所に"]
[null,null,null,null,null,"（電話番号）",null,null,null,null,null,null,null,"－",null,null,null,null,"－",null,null,null,null,null,null,null,null,null,null,null,null,null,null,null,null,null,null,null,{"$f":"\"「発注機関名_当初契約日_\"&B15&\"_契約者名_変更契約に係る申出書」\"","v":"「発注機関名_当初契約日_工事番号_契約者名_変更契約に係る申出書」"}]
[null,null,null,null,null,null,null,null,null,null,null,null,null,null,null,null,null,null,null,null,null,null,null,null,null,null,null,null,null,null,null,null,null,null,null,null,null,null,"をファイル名としたこの様式が、ＰＤＦで保存されます。"]
[]
[null,"（留意事項）",null,null,null,null,null,null,null,null,null,null,null,null,null,null,null,null,null,null,null,null,null,null,null,null,null,null,null,null,null,null,null,null,null,null,null,null,"（ＰＤＦの保存範囲は、Ａ～Ｙ列までです。）"]
[null,null,"※",{"$f":"\"この申出書は、\"&IF(AB2=1,\"工事監督員\",\"業務担当員\")&\"に変更契約に係る設計変更上申日を確認した上で、\"","v":"この申出書は、工事監督員に変更契約に係る設計変更上申日を確認した上で、"}]
[null,null,null,"各発注機関へ直接、提出してください。"]
[]
[null,null,null,"提 出 先",null,null,null,{"$f":"IF(AB5=20,\"建設部建築局計画管理課管理調整係\",VLOOKUP(AB5,'別紙１－③ (ＪＶ用)'!AP2:AT12,2)&\"入札契約課予算係\")","v":{"$error":"#N/A"}}]
[null,null,null,"電　　話",null,null,null,{"$f":"VLOOKUP(AB5,'別紙１－③ (ＪＶ用)'!AP2:AT12,5)","v":{"$error":"#N/A"}}]
[null,null,null,"メールアドレス",null,null,null,null,{"$f":"VLOOKUP(AB5,'別紙１－③ (ＪＶ用)'!AP2:AT12,4)","v":{"$error":"#N/A"}}]